fUST/lending_fUST_20241230
["ID","MTS","AMOUNT","RATE_DAILY","PERIOD"]
[347193844,1735557042423,-500.0,0.00012879,2]
[347193845,1735557042433,-500.0,0.00012879,2]
[347193846,1735557042442,-500.0,0.00012879,2]
[347193847,1735557042452,-500.0,0.00012879,2]
[347193848,1735557042462,-502.47937163,0.00012879,2]
[347193849,1735557042472,-500.0,0.00012879,2]
[347193850,1735557042482,-509.13395835,0.00012879,2]
[347193851,1735557042491,-509.79478455,0.00012879,2]
[347193852,1735557042501,-503.34563675,0.00012879,2]
[347193853,1735557042511,-507.7868198,0.00012879,2]
[347193854,1735557042520,-500.0,0.00012879,2]
[347193855,1735557042530,-189.19836905,0.00012879,2]
[347193856,1735557042539,-500.0,0.00012879,2]
[347193857,1735557042549,-503.65668775,0.00012879,2]
[347193858,1735557042559,-500.0,0.00012879,2]
[347193859,1735557042568,-500.0,0.00012879,2]
[347193860,1735557042578,-664.39798993,0.000129,2]
[347193861,1735557042588,-664.39798986,0.000129,2]
[347193862,1735557042598,-502.31100259,0.00012926,2]
[347193863,1735557042607,-500.58599813,0.00012926,2]
[347193864,1735557042617,-500.59085448,0.00012926,2]
[347193865,1735557042627,-500.0,0.00013071,2]
[347193866,1735557042637,-502.41149017,0.00013104,2]
[347193867,1735557042647,-500.0,0.00013151,2]
[347193868,1735557042657,-500.0,0.00013151,2]
[347193869,1735557042666,-500.0,0.00013151,2]
[347193870,1735557042676,-500.0,0.00013151,2]
[347193871,1735557042686,-500.0,0.00013151,2]
[347193872,1735557042696,-500.0,0.00013151,2]
[347193873,1735557042705,-500.0,0.00013152,2]
[347193874,1735557042716,-500.0,0.00013152,2]
[347193875,1735557042725,-500.0,0.00013152,2]
[347193876,1735557042734,-500.0,0.00013152,2]
[347193877,1735557042743,-500.0,0.00013152,2]
[347193878,1735557042753,-500.0,0.00013152,2]
[347193879,1735557042762,-208.35277077,0.00013152,2]
[347193880,1735557042771,-500.0,0.00013152,2]
[347193881,1735557042781,-500.0,0.00013152,2]
[347193882,1735557042791,-500.0,0.00013152,2]
[347193883,1735557042800,-500.0,0.00013152,2]
[347193885,1735557042809,-500.0,0.00013152,2]
[347193887,1735557042818,-527.38353024,0.00013152,2]
[347193889,1735557042829,-500.0,0.00013152,2]
[347193891,1735557042839,-934.98,0.00013152,2]
[347193893,1735557042848,-1082.46,0.00013152,2]
[347193894,1735557042858,-500.0,0.00013152,2]
[347193895,1735557042868,-2120.99,0.00013152,2]
[347193896,1735557042877,-6268.24,0.00013152,2]
[347193897,1735557042887,-4662.91,0.00013152,2]
[347193898,1735557042897,-292.15350081,0.00013153,2]
[347193899,1735557042906,-500.0,0.00013153,2]
[347193900,1735557042916,-500.0,0.00013153,2]
[347193902,1735557042926,-502.30033796,0.00013153,2]
[347193904,1735557042935,-500.0,0.00013153,2]
[347193905,1735557042945,-266.92551397,0.00013153,2]
[347193906,1735557042954,-525.24148733,0.00013153,2]
[347193907,1735557042964,-502.57302151,0.00013153,2]
[347193909,1735557042973,-502.8024777,0.00013153,2]
[347193910,1735557042982,-503.97015443,0.00013153,2]
[347193911,1735557042991,-500.0,0.00013153,2]
[347193912,1735557043002,-500.0,0.00013153,2]
[347193913,1735557043012,-500.0,0.00013153,2]
[347193914,1735557043021,-500.0,0.00013153,2]
[347193915,1735557043031,-500.0,0.00013153,2]
[347193916,1735557043041,-500.0,0.00013329,2]
[347193917,1735557043054,-500.0,0.0001333,2]
[347193918,1735557043064,-500.0,0.0001333,2]
[347193919,1735557043074,-500.0,0.0001333,2]
[347193920,1735557043084,-500.0,0.0001333,2]
[347193921,1735557043095,-500.0,0.0001333,2]
[347193922,1735557043105,-500.0,0.0001333,2]
[347193923,1735557043114,-500.0,0.0001333,2]
[347193924,1735557043124,-500.0,0.0001333,2]
[347193926,1735557043135,-500.0,0.0001333,2]
[347193928,1735557043144,-500.0,0.0001333,2]
[347193929,1735557043155,-500.0,0.0001333,2]
[347193930,1735557043165,-500.0,0.0001333,2]
[347193931,1735557043175,-500.0,0.0001333,2]
[347193932,1735557043184,-500.0,0.0001333,2]
[347193934,1735557043194,-500.0,0.0001333,2]
[347193935,1735557043203,-500.0,0.0001333,2]
[347193936,1735557043213,-524.66289064,0.0001333,2]
[347193937,1735557043222,-500.0,0.00013331,2]
[347193938,1735557043232,-500.0,0.00013331,2]
[347193940,1735557043241,-500.0,0.00013331,2]
[347193942,1735557043251,-500.0,0.00013331,2]
[347193943,1735557043260,-1028.14,0.00013331,2]
[347193945,1735557043269,-484.95,0.00013331,2]
[347193946,1735557043279,-500.0,0.00013331,2]
[347193947,1735557043288,-500.0,0.00013425,2]
[347193948,1735557043299,-500.0,0.00013425,2]
[347193949,1735557043308,-500.0,0.00013425,2]
[347193951,1735557043318,-500.0,0.00013425,2]
[347193953,1735557043327,-291.35,0.00013425,2]
[347193955,1735557043336,-500.0,0.00013425,2]
[347193956,1735557043349,-500.0,0.00013426,2]
[347193957,1735557043359,-500.0,0.00013426,2]
[347193958,1735557043369,-386.5602662,0.00013426,2]
[347193959,1735557043379,-500.0,0.00013426,2]
[347193960,1735557043389,-623.20011283,0.00013426,2]
[347193961,1735557043398,-500.0,0.00013426,2]
[347193962,1735557043407,-500.0,0.00013426,2]
[347193963,1735557043418,-500.0,0.00013426,2]
[347193964,1735557043427,-500.0,0.00013426,2]
[347193965,1735557043437,-553.29776117,0.00013426,2]
[347193966,1735557043446,-500.0,0.00013426,2]
[347193967,1735557043455,-934.98,0.00013426,2]
[347193968,1735557043464,-1082.46,0.00013426,2]
[347193969,1735557043473,-500.0,0.00013426,2]
[347193970,1735557043482,-2120.99,0.00013426,2]
[347193971,1735557043492,-6268.24,0.00013426,2]
[347193973,1735557043502,-4662.91,0.00013426,2]
[347193975,1735557043511,-500.0,0.00013427,2]
[347193977,1735557043520,-613.24787981,0.00013427,2]
[347193979,1735557043531,-500.0,0.00013427,2]
[347193980,1735557043542,-500.0,0.00013427,2]
[347193981,1735557043551,-500.0,0.00013427,2]
[347193982,1735557043560,-459.20602778,0.00013427,2]
[347193983,1735557043642,-214.01587728,0.00013427,2]
[347193984,1735557043658,-500.0,0.00013427,2]
[347193985,1735557043668,-448.81539609,0.00013516,2]
[347193986,1735557043677,-420.0,0.00013529,2]
[347193987,1735557043686,-500.0,0.00013602,2]
[347193988,1735557043695,-500.0,0.00013603,2]
[347193989,1735557043705,-500.0,0.00013603,2]
[347193990,1735557043714,-500.0,0.00013604,2]
[347193991,1735557043723,-500.0,0.00013604,2]
[347193992,1735557043732,-500.0,0.00013604,2]
[347193993,1735557043742,-500.0,0.00013604,2]
[347193994,1735557043752,-500.0,0.00013604,2]
[347193995,1735557043762,-505.23739682,0.00013604,2]
[347193996,1735557043771,-1028.14,0.00013605,2]
[347193997,1735557043780,-500.0,0.00013605,2]
[347193998,1735557043789,-1000.0,0.00013619,2]
[347193999,1735557043799,-1000.0,0.00013698,2]
[347194000,1735557043808,-1107.5649309,0.00013698,2]
[347194001,1735557043818,-500.0,0.00013698,2]
[347194002,1735557043827,-500.0,0.00013698,2]
[347194003,1735557043836,-500.0,0.00013698,2]
[347194004,1735557043845,-500.0,0.00013698,2]
[347194005,1735557043855,-500.0,0.00013698,2]
[347194006,1735557043864,-500.0,0.00013698,2]
[347194007,1735557043873,-500.0,0.00013698,2]
[347194008,1735557043882,-501.34918812,0.00013698,2]
[347194009,1735557043892,-500.0,0.00013698,2]
[347194010,1735557043901,-500.0,0.00013698,2]
[347194011,1735557043911,-552.59579627,0.00013698,2]
[347194012,1735557043920,-2610.6,0.00013698,2]
[347194013,1735557043930,-2610.6,0.00013698,2]
[347194014,1735557043940,-500.0,0.00013698,2]
[347194015,1735557043950,-500.0,0.00013698,2]
[347194016,1735557043959,-500.0,0.00013698,2]
[347194017,1735557043968,-1000.0,0.00013698,2]
[347194018,1735557043978,-1000.0,0.00013698,2]
[347194019,1735557043987,-1112.81732426,0.00013698,2]
[347194020,1735557043996,-500.0,0.00013698,2]
[347194021,1735557044006,-500.0,0.00013698,2]
[347194022,1735557044015,-500.0,0.00013698,2]
[347194023,1735557044025,-1219.873936,0.00013699,2]
[347194024,1735557044034,-37057.3309285,0.00013699,2]
[347194025,1735557044044,-2331.8952588,0.00013699,2]
[347194026,1735557044053,-151.0,0.00013699,2]
[347194027,1735557044063,-211.967819,0.00013699,2]
[347194028,1735557044072,-211.967819,0.00013699,2]
[347194029,1735557044082,-151.0,0.00013699,2]
[347194030,1735557044091,-151.0,0.00013699,2]
[347194031,1735557044099,-151.0,0.00013699,2]
[347194032,1735557044108,-262.42338212,0.00013699,2]
[347194033,1735557044118,-534.77273704,0.00013699,2]
[347194034,1735557044127,-534.77273704,0.00013699,2]
[347194035,1735557044136,-534.77273704,0.00013699,2]
[347194036,1735557044145,-534.77273704,0.00013699,2]
[347194037,1735557044154,-534.77273704,0.00013699,2]
[347194038,1735557044163,-534.77273704,0.00013699,2]
[347194039,1735557044172,-534.77273704,0.00013699,2]
[347194040,1735557044182,-534.77273704,0.00013699,2]
[347194041,1735557044191,-534.77273704,0.00013699,2]
[347194042,1735557044200,-534.77273704,0.00013699,2]
[347194043,1735557044209,-534.77273704,0.00013699,2]
[347194044,1735557044218,-534.77273704,0.00013699,2]
[347194045,1735557044227,-534.77273704,0.00013699,2]
[347194046,1735557044236,-534.77273704,0.00013699,2]
[347194047,1735557044245,-534.77273704,0.00013699,2]
[347194048,1735557044256,-534.77273704,0.00013699,2]
[347194049,1735557044266,-534.77273704,0.00013699,2]
[347194050,1735557044275,-534.77273704,0.00013699,2]
[347194051,1735557044284,-534.77273704,0.00013699,2]
[347194052,1735557044293,-534.77273704,0.00013699,2]
[347194053,1735557044302,-534.77273704,0.00013699,2]
[347194054,1735557044311,-534.77273704,0.00013699,2]
[347194055,1735557044320,-534.77273704,0.00013699,2]
[347194056,1735557044330,-534.77273704,0.00013699,2]
[347194057,1735557044339,-534.77273704,0.00013699,2]
[347194058,1735557044349,-534.77273704,0.00013699,2]
[347194059,1735557044361,-534.77273704,0.00013699,2]
[347194060,1735557044371,-534.77273704,0.00013699,2]
[347194061,1735557044380,-534.77273704,0.00013699,2]
[347194062,1735557044390,-534.77273704,0.00013699,2]
[347194063,1735557044400,-534.77273704,0.00013699,2]
[347194064,1735557044410,-534.77273704,0.00013699,2]
[347194065,1735557044420,-534.77273704,0.00013699,2]
[347194066,1735557044430,-534.77273704,0.00013699,2]
[347194067,1735557044440,-534.77273704,0.00013699,2]
[347194068,1735557044449,-534.77273704,0.00013699,2]
[347194069,1735557044459,-534.77273704,0.00013699,2]
[347194070,1735557044468,-534.77273704,0.00013699,2]
[347194071,1735557044477,-534.77273704,0.00013699,2]
[347194072,1735557044486,-534.77273704,0.00013699,2]
[347194073,1735557044496,-534.77273704,0.00013699,2]
[347194074,1735557044506,-534.77273704,0.00013699,2]
[347194075,1735557044515,-534.77273704,0.00013699,2]
[347194076,1735557044525,-534.77273704,0.00013699,2]
[347194077,1735557044534,-534.77273704,0.00013699,2]
[347194078,1735557044544,-534.77273704,0.00013699,2]
[347194079,1735557044555,-534.77273704,0.00013699,2]
[347194080,1735557044565,-534.77273704,0.00013699,2]
[347194081,1735557044575,-534.77273704,0.00013699,2]
[347194082,1735557044584,-534.77273704,0.00013699,2]
[347194083,1735557044594,-534.77273704,0.00013699,2]
[347194084,1735557044603,-534.77273704,0.00013699,2]
[347194085,1735557044612,-632.37847654,0.00013699,2]
[347194086,1735557044622,-632.37847654,0.00013699,2]
[347194087,1735557044631,-632.37847654,0.00013699,2]
[347194088,1735557044641,-632.37847654,0.00013699,2]
[347194089,1735557044650,-632.37847654,0.00013699,2]
[347194090,1735557044659,-632.37847654,0.00013699,2]
[347194091,1735557044668,-632.37847654,0.00013699,2]
[347194092,1735557044678,-632.37847654,0.00013699,2]
[347194093,1735557044688,-632.37847654,0.00013699,2]
[347194094,1735557044697,-632.37847654,0.00013699,2]
[347194095,1735557044707,-632.37847654,0.00013699,2]
[347194096,1735557044716,-632.37847654,0.00013699,2]
[347194097,1735557044726,-632.37847654,0.00013699,2]
[347194098,1735557044735,-632.37847654,0.00013699,2]
[347194099,1735557044745,-632.37847654,0.00013699,2]
[347194100,1735557044755,-632.37847654,0.00013699,2]
[347194101,1735557044765,-632.37847654,0.00013699,2]
[347194102,1735557044774,-632.37847654,0.00013699,2]
[347194103,1735557044783,-632.37847654,0.00013699,2]
[347194104,1735557044793,-632.37847654,0.00013699,2]
[347194105,1735557044802,-632.37847654,0.00013699,2]
[347194106,1735557044811,-632.37847654,0.00013699,2]
[347194107,1735557044821,-632.37847654,0.00013699,2]
[347194108,1735557044830,-632.37847654,0.00013699,2]
[347194109,1735557044839,-632.37847654,0.00013699,2]
[347194110,1735557044848,-632.37847654,0.00013699,2]
[347194111,1735557044857,-632.37847654,0.00013699,2]
[347194112,1735557044866,-632.37847654,0.00013699,2]
[347194113,1735557044875,-632.37847654,0.00013699,2]
[347194114,1735557044885,-632.37847654,0.00013699,2]
[347194115,1735557044894,-632.37847654,0.00013699,2]
[347194116,1735557044903,-632.37847654,0.00013699,2]
[347194117,1735557044912,-632.37847654,0.00013699,2]
[347194118,1735557044921,-632.37847654,0.00013699,2]
[347194119,1735557044931,-632.37847654,0.00013699,2]
[347194120,1735557044939,-632.37847648,0.00013699,2]
[347194121,1735557044948,-500.0,0.00013699,2]
[347194122,1735557044957,-500.0,0.00013699,2]
[347194123,1735557044966,-500.0,0.00013699,2]
[347194124,1735557044975,-392.3344325,0.00013699,2]
[347194125,1735557044984,-253.21292253,0.00013699,2]
[347194126,1735557044993,-500.0,0.000137,2]
[347194127,1735557045003,-500.0,0.000137,2]
[347194128,1735557045012,-500.0,0.000137,2]
[347194129,1735557045021,-500.0,0.000137,2]
[347194130,1735557045030,-500.0,0.000137,2]
[347194131,1735557045039,-225.54927126,0.000137,2]
[347194132,1735557045048,-934.98,0.000137,2]
[347194133,1735557045058,-1082.46,0.000137,2]
[347194134,1735557045067,-500.0,0.000137,2]
[347194135,1735557045080,-2120.99,0.000137,2]
[347194136,1735557045090,-6268.24,0.000137,2]
[347194137,1735557045099,-4662.91,0.000137,2]
[347194138,1735557045108,-500.0,0.00013701,2]
[347194139,1735557045117,-401.92855892,0.00013701,2]
[347194140,1735557045127,-500.0,0.00013701,2]
[347194141,1735557045135,-372.32740917,0.00013701,2]
[347194142,1735557045144,-480.93937716,0.00013877,2]
[347194143,1735557045154,-500.0,0.00013877,2]
[347194144,1735557045163,-257.852838,0.00013878,2]
[347194145,1735557045172,-500.0,0.00013878,2]
[347194146,1735557045245,-500.0,0.00013878,2]
[347194147,1735557045255,-500.0,0.00013878,2]
[347194148,1735557045264,-500.0,0.00013878,2]
[347194149,1735557045273,-500.0,0.00013878,2]
[347194150,1735557045282,-211.967819,0.00013879,2]
[347194151,1735557045292,-211.967819,0.00013879,2]
[347194152,1735557045301,-1028.14,0.00013879,2]
[347194153,1735557045310,-205.890232,0.0001388,2]
[347194154,1735557045319,-205.890232,0.0001388,2]
[347194155,1735557045328,-151.0,0.0001388,2]
[347194156,1735557045337,-400.0,0.00013973,2]
[347194157,1735557045347,-500.0,0.00013973,2]
[347194158,1735557045358,-500.0,0.00013973,2]
[347194159,1735557045372,-500.0,0.00013973,2]
[347194160,1735557045382,-365.64,0.00013974,2]
[347194161,1735557045392,-500.0,0.00013974,2]
[347194162,1735557045403,-640.33,0.00013974,2]
[347194163,1735557045412,-500.0,0.00013974,2]
[347194164,1735557045422,-934.98,0.00013974,2]
[347194165,1735557045431,-1082.46,0.00013974,2]
[347194166,1735557045441,-500.0,0.00013974,2]
[347194167,1735557045452,-2120.99,0.00013974,2]
[347194168,1735557045461,-6268.24,0.00013974,2]
[347194169,1735557045470,-4662.91,0.00013974,2]
[347194170,1735557045480,-336.51,0.00013975,2]
[347194171,1735557045489,-572.07,0.00013975,2]
[347194172,1735557045498,-500.0,0.00014151,2]
[347194173,1735557045511,-151.0,0.00014152,2]
[347194174,1735557045521,-152.388252,0.00014152,2]
[347194175,1735557045531,-151.0,0.00014152,2]
[347194176,1735557045540,-151.0,0.00014152,2]
[347194177,1735557045550,-500.0,0.00014152,2]
[347194178,1735557045559,-500.0,0.00014152,2]
[347194179,1735557045568,-500.0,0.00014152,2]
[347194180,1735557045578,-500.0,0.00014152,2]
[347194181,1735557045587,-1028.14,0.00014153,2]
[347194182,1735557045596,-448.81539609,0.00014158,2]
[347194183,1735557045605,-500.0,0.00014247,2]
[347194184,1735557045614,-500.0,0.00014247,2]
[347194185,1735557045623,-500.0,0.00014247,2]
[347194186,1735557045632,-500.0,0.00014248,2]
[347194187,1735557045641,-514.27,0.00014248,2]
[347194188,1735557045650,-2610.6,0.00014248,2]
[347194189,1735557045659,-934.98,0.00014248,2]
[347194190,1735557045668,-1082.46,0.00014248,2]
[347194191,1735557045677,-500.0,0.00014248,2]
[347194192,1735557045686,-2120.99,0.00014248,2]
[347194193,1735557045696,-6268.24,0.00014248,2]
[347194194,1735557045705,-4662.91,0.00014248,2]
[347194195,1735557045714,-501.14956778,0.00014426,2]
[347194196,1735557045724,-500.0,0.00014426,2]
[347194197,1735557045733,-500.0,0.00014426,2]
[347194198,1735557045742,-500.0,0.00014426,2]
[347194199,1735557045751,-500.0,0.00014426,2]
[347194200,1735557045762,-211.967819,0.00014427,2]
[347194201,1735557045771,-211.967819,0.00014427,2]
[347194202,1735557045780,-1028.14,0.00014427,2]
[347194203,1735557045789,-500.0,0.00014521,2]
[347194204,1735557045798,-316.47,0.00014521,2]
[347194205,1735557045808,-500.0,0.00014521,2]
[347194206,1735557045817,-368.80676656,0.00014522,2]
[347194207,1735557045826,-934.98,0.00014522,2]
[347194208,1735557045835,-1082.46,0.00014522,2]
[347194209,1735557045845,-500.0,0.00014522,2]
[347194211,1735557045854,-2120.99,0.00014522,2]
[347194212,1735557045863,-6268.24,0.00014522,2]
[347194213,1735557045872,-4662.91,0.00014522,2]
[347194214,1735557045881,-205.890232,0.00014561,2]
[347194215,1735557045890,-205.890232,0.00014561,2]
[347194216,1735557045899,-151.0,0.00014561,2]
[347194217,1735557045908,-1210.82968705,0.00014621,2]
[347194218,1735557045917,-527.06673634,0.00014637,2]
[347194220,1735557045929,-500.0,0.000147,2]
[347194222,1735557045938,-500.0,0.000147,2]
[347194224,1735557045947,-500.0,0.000147,2]
[347194226,1735557045956,-1028.14,0.00014701,2]
[347194227,1735557045966,-500.0,0.00014795,2]
[347194230,1735557045975,-500.0,0.00014795,2]
[347194231,1735557045985,-934.98,0.00014796,2]
[347194233,1735557045994,-1082.46,0.00014796,2]
[347194234,1735557046005,-500.0,0.00014796,2]
[347194235,1735557046014,-2120.99,0.00014796,2]
[347194236,1735557046024,-6268.24,0.00014796,2]
[347194237,1735557046034,-4662.91,0.00014796,2]
[347194238,1735557046045,-269.440535,0.00014797,2]
[347194239,1735557046055,-151.0,0.00014797,2]
[347194240,1735557046064,-175.17102,0.00014797,2]
[347194241,1735557046074,-654.395,0.0001484,2]
[347194243,1735557046084,-587.0,0.00014847,2]
[347194244,1735557046096,-2610.6,0.00014899,2]
[347194246,1735557046106,-64778.93291372,0.000149,2]
[347194247,1735557046115,-64778.93291372,0.000149,2]
[347194248,1735557046124,-64778.93291372,0.000149,2]
[347194249,1735557046133,-64778.93291372,0.000149,2]
[347194250,1735557046143,-64778.93291372,0.000149,2]
[347194252,1735557046152,-211.967819,0.000149,2]
[347194254,1735557046162,-211.967819,0.000149,2]
[347194256,1735557046171,-211.967819,0.000149,2]
[347194258,1735557046181,-211.967819,0.000149,2]
[347194259,1735557046190,-205.890232,0.000149,2]
[347194260,1735557046199,-205.890232,0.000149,2]
[347194261,1735557046208,-205.890232,0.000149,2]
[347194262,1735557046218,-205.890232,0.000149,2]
[347194263,1735557046227,-151.0,0.000149,2]
[347194264,1735557046236,-151.0,0.000149,2]
[347194265,1735557046245,-372.83588,0.000149,2]
[347194266,1735557046256,-372.83588,0.000149,2]
[347194267,1735557046265,-3010.081874,0.000149,2]
[347194268,1735557046274,-3010.081874,0.000149,2]
[347194269,1735557046283,-211.967819,0.00014916,2]
[347194270,1735557046293,-211.967819,0.00014916,2]
[347194271,1735557046302,-205.890232,0.00014974,2]
[347194272,1735557046311,-205.890232,0.00014974,2]
[347194273,1735557046321,-151.0,0.00014974,2]
[347194274,1735557046330,-500.0,0.00014974,2]
[347194275,1735557046339,-500.0,0.00014974,2]
[347194276,1735557046348,-188.61829611,0.00014974,2]
[347194277,1735557046359,-1028.14,0.00014975,2]
[347194278,1735557046369,-153.0,0.00015068,2]
[347194279,1735557046379,-500.0,0.00015069,2]
[347194280,1735557046388,-500.0,0.00015069,2]
[347194281,1735557046397,-934.98,0.0001507,2]
[347194282,1735557046406,-1082.46,0.0001507,2]
[347194283,1735557046414,-500.0,0.0001507,2]
[347194284,1735557046424,-2120.99,0.0001507,2]
[347194285,1735557046433,-6268.24,0.0001507,2]
[347194286,1735557046443,-4662.91,0.0001507,2]
[347194287,1735557046452,-64778.93291372,0.00015093,2]
[347194288,1735557046461,-151.0,0.00015142,2]
[347194289,1735557046470,-500.0,0.00015248,2]
[347194290,1735557046480,-500.0,0.00015248,2]
[347194291,1735557046489,-1028.14,0.00015249,2]
[347194292,1735557046498,-500.0,0.00015343,2]
[347194294,1735557046508,-500.0,0.00015343,2]
[347194295,1735557046518,-824.606058,0.00015344,2]
[347194296,1735557046527,-824.606058,0.00015344,2]
[347194297,1735557046536,-151.0,0.00015344,2]
[347194299,1735557046546,-196.394491,0.00015344,2]
[347194301,1735557046555,-196.394491,0.00015344,2]
[347194303,1735557046565,-291.175382,0.00015344,2]
[347194304,1735557046574,-291.175382,0.00015344,2]
[347194305,1735557046583,-934.98,0.00015344,2]
[347194306,1735557046592,-1082.46,0.00015344,2]
[347194307,1735557046601,-500.0,0.00015344,2]
[347194308,1735557046611,-2120.99,0.00015344,2]
[347194309,1735557046620,-6268.24,0.00015344,2]
[347194310,1735557046629,-4662.91,0.00015344,2]
[347194311,1735557046638,-581.284,0.00015436,2]
[347194312,1735557046647,-465.167767,0.0001546,2]
[347194313,1735557046717,-205.890232,0.00015494,2]
[347194314,1735557046727,-205.890232,0.00015494,2]
[347194315,1735557046736,-151.0,0.00015494,2]
[347194316,1735557046745,-3000.0,0.00015517,2]
[347194317,1735557046754,-211.967819,0.00015517,2]
[347194318,1735557046763,-211.967819,0.00015517,2]
[347194319,1735557046772,-151.0,0.00015517,2]
[347194320,1735557046781,-2272.9686606,0.00015517,2]
[347194321,1735557046791,-500.0,0.00015522,2]
[347194322,1735557046800,-500.0,0.00015522,2]
[347194323,1735557046809,-2610.6,0.00015522,2]
[347194324,1735557046819,-1028.14,0.00015523,2]
[347194325,1735557046828,-64778.93291372,0.0001557,2]
[347194326,1735557046837,-10579.55317666,0.00015595,2]
[347194327,1735557046846,-151.0,0.000156,2]
[347194328,1735557046855,-151.0,0.00015616,2]
[347194329,1735557046864,-2610.6,0.00015616,2]
[347194330,1735557046874,-2610.6,0.00015616,2]
[347194331,1735557046883,-2610.6,0.00015616,2]
[347194332,1735557046893,-2610.6,0.00015616,2]
[347194333,1735557046903,-2610.6,0.00015616,2]
[347194334,1735557046912,-2610.6,0.00015616,2]
[347194335,1735557046921,-2610.6,0.00015616,2]
[347194336,1735557046931,-2610.6,0.00015616,2]
[347194337,1735557046940,-2610.6,0.00015616,2]
[347194338,1735557046949,-2610.6,0.00015616,2]
[347194339,1735557046958,-2610.6,0.00015616,2]
[347194340,1735557046967,-2610.6,0.00015616,2]
[347194341,1735557046976,-2610.6,0.00015616,2]
[347194342,1735557046985,-2610.6,0.00015616,2]
[347194343,1735557046994,-2610.6,0.00015616,2]
[347194344,1735557047004,-2610.6,0.00015616,2]
[347194345,1735557047014,-2610.6,0.00015616,2]
[347194346,1735557047026,-2610.72139864,0.00015616,2]
[347194347,1735557047037,-171.90349462,0.00015616,2]
[347194348,1735557047048,-153.0,0.00015616,2]
[347194349,1735557047058,-153.5340186,0.00015616,2]
[347194350,1735557047068,-214.3641981,0.00015616,2]
[347194351,1735557047078,-153.5340186,0.00015616,2]
[347194352,1735557047086,-153.5340186,0.00015616,2]
[347194353,1735557047095,-153.5340186,0.00015616,2]
[347194354,1735557047104,-214.3641981,0.00015616,2]
[347194355,1735557047113,-153.5340186,0.00015616,2]
[347194356,1735557047122,-153.2916501,0.00015616,2]
[347194357,1735557047131,-214.3641981,0.00015616,2]
[347194358,1735557047141,-214.3641981,0.00015616,2]
[347194359,1735557047150,-214.3641981,0.00015616,2]
[347194360,1735557047160,-352.5060848,0.00015616,2]
[347194361,1735557047169,-352.5060848,0.00015616,2]
[347194362,1735557047178,-352.5060848,0.00015616,2]
[347194363,1735557047187,-66919.34141242,0.00015617,2]
[347194364,1735557047196,-3504.03426283,0.00015617,2]
[347194365,1735557047205,-7050.81192471,0.00015617,2]
[347194366,1735557047308,-457.23898354,0.0001233,2]
[347194367,1735557047320,-42.76101646,0.0001233,2]
[347194368,1735557047329,-410.641,0.0001233,2]
[347194372,1735557060188,400.0,0.00012084,2]
[347194378,1735557074714,3353.835165,0.00025,120]
[347194379,1735557244915,652.89312432,0.00012084,2]
[347194381,1735557435247,250.0,0.00012,2]
[347194382,1735557450079,300.0,0.00012083,2]
[347194383,1735557655783,196.24264449,0.00011984,2]
[347194384,1735557671309,196.24264449,0.00011984,2]
[347194385,1735557686707,196.24264449,0.00011984,2]
[347194386,1735557703350,196.24264449,0.00011984,2]
[347194387,1735557719399,196.24264449,0.00011984,2]
[347194388,1735557734972,158.95466078,0.00011984,2]
[347194410,1735558113184,211.36960532,0.00021544,90]
[347194412,1735558115055,-196.24264449,0.00011864,2]
[347194414,1735558115083,-196.24264449,0.00012105,2]